[Event "Seniors-LEM-50 Sachsen-Anhalt 2024"]
[Site "Magdeburg"]
[Date "2024.07.06"]
[Round "6.5"]
[White "Buciu, Aurel-John"]
[Black "Dannhauer, Frank"]
[Result "0-1"]
[ECO "D02"]
[WhiteElo "1807"]
[BlackElo "1921"]
[Annotator "NA RC"]
[PlyCount "88"]
[EventDate "2024.06.25"]
[EventType "swiss"]
[EventCountry "GER"]
[SourceTitle "playchess.com"]
[Source "ChessBase"]
[SourceQuality "1"]
[TimeControl "40/5400+30:1800+30"]

1. d4 {[%emt 0:00:06]} d5 {[%emt 0:00:17]} 2. Bf4 {[%emt 0:00:16]} Nf6 {[%emt 0:00:11]} 3. Nf3 {[%emt 0:00:14]} e6 {[%emt 0:00:07]} 4. e3 {[%emt 0:00:08]} c5 {[%emt 0:00:12]} 5. c3 {[%emt 0:00:03]} Bd6 {[%emt 0:00:25]} 6. Bg5 {[%emt 0:00:10]} Nbd7 {[%emt 0:03:36]} 7. Bd3 {[%emt 0:00:25]} O-O {[%emt 0:01:31]} 8. Nbd2 {[%emt 0:00:41]} e5 {[%emt 0:01:46]} 9. dxe5 {[%emt 0:00:41]} Nxe5 {[%emt 0:00:37]} 10. Nxe5 {[%emt 0:00:29]} Bxe5 {[%emt 0:00:07]} 11. Nf3 {[%emt 0:00:15]} Bd6 {[%emt 0:05:42]} 12. O-O {[%emt 0:03:21]} Be7 {[%emt 0:04:12]} 13. Qc2 {[%emt 0:05:04]} h6 {[%emt 0:00:35]} 14. Bh4 {[%emt 0:00:14]} Qc7 {[%emt 0:07:43]} 15. Bg3 {[%emt 0:01:31]} Bd6 {[%emt 0:00:35]} 16. Bf5 {[%emt 0:01:38]} Bxg3 {[%emt 0:00:58]} 17. hxg3 $15 {[%emt 0:00:03]} Be6 {[%emt 0:03:13]} 18. Rfd1 {[%emt 0:06:11]} Rad8 {[%emt 0:02:42]} 19. Rac1 {[%emt 0:07:20]} b5 {[%emt 0:05:33]} 20. Bd3 {[%emt 0:07:31]} a6 {[%emt 0:01:11]} 21. b3 {[%emt 0:00:41]} Bg4 {[%emt 0:04:33]} 22. c4 {[%emt 0:06:04]} dxc4 {[%emt 0:02:42]} 23. bxc4 {[%emt 0:00:45]} b4 {[%emt 0:00:21]} 24. Qb2 {[%emt 0:08:47]} Qb7 {[%emt 0:06:33]} 25. Be2 {[%emt 0:02:51]} Ne4 {[%emt 0:02:29]} 26. Kf1 {[%emt 0:02:48]} Qc8 {[%emt 0:05:52]} 27. Qe5 {[%emt 0:11:20]} Rde8 {[%emt 0:10:53]} 28. Qa1 {[%emt 0:03:21]} Qe6 {[%emt 0:07:25]} 29. Rd5 {[%emt 0:01:50]} f6 {[%emt 0:03:49]} 30. Ng1 {[%emt 0:02:17]} Nxf2 {[%emt 0:01:00]} 31. Kxf2 {[%emt 0:04:43]} Qxe3+ {[%emt 0:00:20]} 32. Kf1 {[%emt 0:00:25]} Bxe2+ {[%emt 0:00:38]} 33. Nxe2 {[%emt 0:00:21]} Qxe2+ {[%emt 0:00:06]} 34. Kg1 {[%emt 0:01:35]} Re5 {[%emt 0:00:31]} 35. Rcd1 {[%emt 0:08:30]} Rfe8 {[%emt 0:01:49]} 36. Rf1 {[%emt 0:01:11]} Qe3+ {[%emt 0:03:18]} 37. Kh2 {[%emt 0:00:47]} Rxd5 {[%emt 0:00:08]} 38. cxd5 {[%emt 0:00:19]} Re5 {[%emt 0:00:11]} 39. Qd1 {[%emt 0:00:15]} Rg5 {[%emt 0:02:48]} 40. g4 {[%emt 0:02:03]} Qe5+ {[%emt 0:00:27]} 41. g3 {[%emt 0:31:32]} Qxd5 {[%emt 0:30:16]} 42. Qe2 {[%emt 0:01:08]} Re5 {[%emt 0:06:32]} 43. Qxa6 {[%emt 0:00:04]} c4 {[%emt 0:00:37]} 44. Qb6 {[%emt 0:04:33]} Re2+ {[%emt 0:02:00]} 0-1

[Event "Seniors-LEM-50 Sachsen-Anhalt 2024"]
[Site "Magdeburg"]
[Date "2024.07.06"]
[Round "6.6"]
[White "Fabregas, Oliver"]
[Black "Ahrens, Gunnar"]
[Result "1-0"]
[ECO "D07"]
[WhiteElo "1876"]
[BlackElo "1750"]
[Annotator "NA RC"]
[PlyCount "85"]
[EventDate "2024.06.25"]
[EventType "swiss"]
[EventCountry "GER"]
[SourceTitle "playchess.com"]
[Source "ChessBase"]
[SourceQuality "1"]
[TimeControl "40/5400+30:1800+30"]

1. Nf3 {[%emt 0:00:02]} Nc6 {[%emt 0:00:18]} 2. d4 {[%emt 0:00:07]} d5 {[%emt 0:00:45]} 3. c4 {[%emt 0:00:05]} Bg4 {[%emt 0:00:59]} 4. cxd5 {[%emt 0:00:07]} Qxd5 {[%emt 0:00:32]} 5. Nc3 {[%emt 0:00:35]} Qd6 {[%emt 0:02:24]} 6. e3 {[%emt 0:05:26]} O-O-O {[%emt 0:05:10]} 7. Be2 {[%emt 0:04:42]} e5 {[%emt 0:08:26]} 8. d5 {[%emt 0:11:29]} e4 {[%emt 0:19:10]} 9. Ng5 {[%emt 0:19:26]} Bxe2 {[%emt 0:01:40]} 10. Qxe2 {[%emt 0:00:21]} Ne5 {[%emt 0:00:47]} 11. Ngxe4 {[%emt 0:00:55]} Qg6 {[%emt 0:02:35]} 12. O-O {[%emt 0:02:56]} f5 {[%emt 0:00:45]} 13. Ng3 {[%emt 0:01:59]} Bd6 {[%emt 0:02:49]} 14. e4 {[%emt 0:10:22]} fxe4 {[%emt 0:02:20]} 15. Ncxe4 {[%emt 0:00:39]} Nf6 {[%emt 0:04:43]} 16. Nxd6+ {[%emt 0:01:13]} cxd6 {[%emt 0:00:10]} 17. Be3 {[%emt 0:01:58]} Kb8 {[%emt 0:01:48]} 18. Rfd1 {[%emt 0:02:26]} h5 {[%emt 0:01:33]} 19. h3 {[%emt 0:04:29]} h4 {[%emt 0:01:22]} 20. Nf1 {[%emt 0:00:34]} Rhf8 {[%emt 0:03:03]} 21. f4 {[%emt 0:02:39]} Ned7 {[%emt 0:00:49]} 22. Rac1 {[%emt 0:03:06]} Rfe8 {[%emt 0:03:03]} 23. Qf2 {[%emt 0:02:24]} b6 {[%emt 0:01:52]} 24. Qxh4 {[%emt 0:03:06]} Rh8 {[%emt 0:02:18]} 25. Qg5 {[%emt 0:02:19]} Qf7 {[%emt 0:00:33]} 26. Qf5 {[%emt 0:03:54]} Rde8 {[%emt 0:02:33]} 27. Qd3 {[%emt 0:06:06]} Ne4 {[%emt 0:01:30]} 28. a4 {[%emt 0:02:11]} Nec5 {[%emt 0:03:49]} 29. Bxc5 {[%emt 0:02:43]} Nxc5 {[%emt 0:00:39]} 30. Qf3 {[%emt 0:01:11]} Rhf8 {[%emt 0:01:38]} 31. Rc4 {[%emt 0:00:57]} Qd7 {[%emt 0:01:42]} 32. b3 {[%emt 0:00:59]} g5 {[%emt 0:02:01]} 33. Rdd4 {[%emt 0:00:36]} Qh7 {[%emt 0:01:24]} 34. Qg3 {[%emt 0:00:52]} Rf5 {[%emt 0:02:30]} 35. fxg5 {[%emt 0:00:39]} Rxf1+ {[%emt 0:00:48]} 36. Kh2 {[%emt 0:00:50]} Re5 {[%emt 0:02:03]} 37. g6 {[%emt 0:01:09]} Qg7 {[%emt 0:02:19]} 38. Rh4 {[%emt 0:00:34]} Qe7 {[%emt 0:06:11]} 39. Rh8+ {[%emt 0:00:28]} Kb7 {[%emt 0:00:15]} 40. Rh7 {[%emt 0:00:14]} Ka6 {[%emt 0:02:47]} 41. Rxe7 {[%emt 0:30:09]} Rxe7 {[%emt 0:30:11]} 42. g7 {[%emt 0:00:54]} Ree1 {[%emt 0:00:46]} 43. Qxe1 {[%emt 0:00:19]} 1-0

[Event "Seniors-LEM-50 Sachsen-Anhalt 2024"]
[Site "Magdeburg"]
[Date "2024.07.06"]
[Round "6.7"]
[White "Janeke, Thomas"]
[Black "Mitschka, Manfred"]
[Result "0-1"]
[ECO "A85"]
[WhiteElo "1764"]
[BlackElo "1863"]
[Annotator "NA RC"]
[PlyCount "102"]
[EventDate "2024.06.25"]
[EventType "swiss"]
[EventCountry "GER"]
[SourceTitle "playchess.com"]
[Source "ChessBase"]
[SourceQuality "1"]
[TimeControl "40/5400+30:1800+30"]

1. c4 {[%emt 0:00:04]} b6 {[%emt 0:00:07]} 2. Nf3 {[%emt 0:00:20]} Bb7 {[%emt 0:00:53]} 3. e3 {[%emt 0:00:17]} e6 {[%emt 0:01:23]} 4. d4 {[%emt 0:00:33]} Bb4+ {[%emt 0:00:29]} 5. Nc3 {[%emt 0:00:20]} f5 {[%emt 0:00:18]} 6. Be2 {[%emt 0:00:12]} Nf6 {[%emt 0:00:21]} 7. O-O {[%emt 0:00:21]} Bxc3 {[%emt 0:00:09]} 8. bxc3 {[%emt 0:00:10]} O-O {[%emt 0:00:07]} 9. Ne5 {[%emt 0:02:47]} d6 {[%emt 0:01:11]} 10. Bf3 {[%emt 0:01:05]} Bxf3 {[%emt 0:02:51]} 11. Qxf3 {[%emt 0:02:15]} Nbd7 {[%emt 0:00:59]} 12. Nd3 {[%emt 0:07:06]} Ne4 {[%emt 0:02:16]} 13. Nf4 {[%emt 0:00:33]} Qe7 {[%emt 0:01:23]} 14. Ne2 {[%emt 0:01:11]} g5 {[%emt 0:08:33]} 15. h3 {[%emt 0:08:02]} Nef6 {[%emt 0:16:55]} 16. Ng3 {[%emt 0:02:29]} Kh8 {[%emt 0:08:50]} 17. Bd2 {[%emt 0:03:22]} Rae8 {[%emt 0:03:16]} 18. Qc6 {[%emt 0:02:23]} Nb8 {[%emt 0:01:31]} 19. Qb7 {[%emt 0:01:35]} a5 {[%emt 0:01:40]} 20. Qf3 {[%emt 0:04:03]} Nbd7 {[%emt 0:00:38]} 21. Qb7 {[%emt 0:00:58]} Rc8 {[%emt 0:02:32]} 22. Qf3 {[%emt 0:05:45]} Qf7 {[%emt 0:05:26]} 23. Qe2 {[%emt 0:00:49]} Qg6 {[%emt 0:01:39]} 24. Qd3 {[%emt 0:01:51]} h5 {[%emt 0:06:20]} 25. f3 {[%emt 0:01:43]} h4 {[%emt 0:03:21]} 26. Ne2 {[%emt 0:00:36]} Nh5 {[%emt 0:03:18]} 27. Kh2 {[%emt 0:01:44]} Rg8 {[%emt 0:05:47]} 28. Rf2 {[%emt 0:01:03]} Rce8 {[%emt 0:02:12]} 29. Re1 {[%emt 0:02:11]} Ndf6 {[%emt 0:02:51]} 30. Rff1 {[%emt 0:02:24]} e5 {[%emt 0:03:01]} 31. e4 {[%emt 0:00:54]} fxe4 {[%emt 0:02:43]} 32. fxe4 {[%emt 0:01:38]} Nf4 {[%emt 0:01:26]} 33. Qc2 {[%emt 0:03:04]} Qxe4 {[%emt 0:03:49]} 34. Qxe4 {[%emt 0:01:09]} Nxe4 {[%emt 0:00:07]} 35. Bxf4 {[%emt 0:01:35]} exf4 {[%emt 0:01:53]} 36. Rc1 {[%emt 0:01:33]} Ng3 {[%emt 0:00:34]} 37. Nxg3 {[%emt 0:01:15]} hxg3+ {[%emt 0:01:00]} 38. Kg1 {[%emt 0:00:21]} Re2 {[%emt 0:00:35]} 39. Rfe1 {[%emt 0:00:26]} Rge8 {[%emt 0:00:20]} 40. Kf1 {[%emt 0:00:25]} Rxe1+ {[%emt 0:00:48]} 41. Rxe1 {[%emt 0:30:13]} Rxe1+ {[%emt 0:30:19]} 42. Kxe1 {[%emt 0:00:11]} Kg7 {[%emt 0:00:26]} 43. Ke2 {[%emt 0:00:18]} Kf6 {[%emt 0:00:36]} 44. Kf3 {[%emt 0:00:50]} Kf5 {[%emt 0:00:12]} 45. a3 {[%emt 0:01:46]} c6 {[%emt 0:01:47]} 46. a4 {[%emt 0:00:56]} d5 {[%emt 0:05:48]} 47. c5 {[%emt 0:01:58]} b5 {[%emt 0:00:00]} 48. axb5 {[%emt 0:00:00]} cxb5 {[%emt 0:00:00]} 49. Ke2 {[%emt 0:00:00]} a4 {[%emt 0:00:00]} 50. Kd3 {[%emt 0:00:00]} f3 {[%emt 0:00:00]} 51. gxf3 {[%emt 0:00:00]} g2 {[%emt 0:00:00]} 0-1

[Event "Seniors-LEM-50 Sachsen-Anhalt 2024"]
[Site "Magdeburg"]
[Date "2024.07.06"]
[Round "6.8"]
[White "Schoknecht, Sabine"]
[Black "Anderberg, Peter"]
[Result "0-1"]
[ECO "A01"]
[WhiteElo "1836"]
[BlackElo "1909"]
[Annotator "NA RC"]
[PlyCount "56"]
[EventDate "2024.06.25"]
[EventType "swiss"]
[EventCountry "GER"]
[SourceTitle "playchess.com"]
[Source "ChessBase"]
[SourceQuality "1"]
[TimeControl "40/5400+30:1800+30"]

1. b3 {[%emt 0:00:05]} e5 {[%emt 0:03:47]} 2. Bb2 {[%emt 0:00:12]} Nc6 {[%emt 0:00:08]} 3. e4 {[%emt 0:00:48]} Bc5 {[%emt 0:05:07]} 4. Nf3 {[%emt 0:00:45]} d6 {[%emt 0:00:57]} 5. Be2 {[%emt 0:00:24]} Nf6 {[%emt 0:01:02]} 6. Nc3 {[%emt 0:00:25]} a6 {[%emt 0:01:49]} 7. d3 {[%emt 0:00:20]} O-O {[%emt 0:02:33]} 8. h3 {[%emt 0:00:35]} Nd4 {[%emt 0:06:58]} 9. Qd2 {[%emt 0:05:03]} Be6 {[%emt 0:04:29]} 10. g4 {[%emt 0:01:59]} Nd7 {[%emt 0:08:45]} 11. O-O-O {[%emt 0:04:50]} c6 {[%emt 0:13:06]} 12. Rdf1 {[%emt 0:00:54]} b5 {[%emt 0:04:11]} 13. Bd1 {[%emt 0:02:33]} a5 {[%emt 0:03:28]} 14. a3 {[%emt 0:04:30]} Nxf3 {[%emt 0:08:35]} 15. Bxf3 {[%emt 0:00:29]} b4 {[%emt 0:00:13]} 16. axb4 {[%emt 0:01:43]} Bxb4 {[%emt 0:00:13]} 17. Qe3 {[%emt 0:01:40]} Nb6 {[%emt 0:05:34]} 18. Na2 {[%emt 0:02:47]} c5 {[%emt 0:06:13]} 19. Bd1 {[%emt 0:08:06]} a4 {[%emt 0:01:02]} 20. Nxb4 {[%emt 0:08:16]} cxb4 {[%emt 0:00:02]} 21. bxa4 {[%emt 0:00:56]} Nxa4 {[%emt 0:00:41]} 22. f4 {[%emt 0:05:11]} f6 {[%emt 0:09:13]} 23. Rf2 {[%emt 0:04:07]} Nxb2 {[%emt 0:00:35]} 24. Kxb2 {[%emt 0:00:03]} Qc7 {[%emt 0:01:47]} 25. d4 {[%emt 0:07:28]} exd4 {[%emt 0:01:59]} 26. Qxd4 {[%emt 0:00:47]} Qc3+ {[%emt 0:01:10]} 27. Qxc3 {[%emt 0:00:34]} Ra2+ {[%emt 0:00:04]} 28. Kc1 {[%emt 0:02:57]} bxc3 {[%emt 0:00:07]} 0-1

[Event "Seniors-LEM-50 Sachsen-Anhalt 2024"]
[Site "Magdeburg"]
[Date "2024.07.06"]
[Round "6.9"]
[White "Gaertig, Johannes"]
[Black "Hencke, Heiko"]
[Result "1/2-1/2"]
[ECO "D02"]
[WhiteElo "1687"]
[BlackElo "1855"]
[Annotator "NA RC"]
[PlyCount "86"]
[EventDate "2024.06.25"]
[EventType "swiss"]
[EventCountry "GER"]
[SourceTitle "playchess.com"]
[Source "ChessBase"]
[SourceQuality "1"]
[TimeControl "40/5400+30:1800+30"]

1. d4 {[%emt 0:00:14]} d5 {[%emt 0:00:12]} 2. Nf3 {[%emt 0:00:16]} Nf6 {[%emt 0:00:35]} 3. Bf4 {[%emt 0:00:37]} e6 {[%emt 0:00:20]} 4. Ne5 {[%emt 0:00:42]} Nbd7 {[%emt 0:03:10]} 5. Nd2 {[%emt 0:01:07]} Nxe5 {[%emt 0:00:40]} 6. Bxe5 {[%emt 0:00:18]} Be7 {[%emt 0:00:48]} 7. e3 {[%emt 0:00:16]} O-O {[%emt 0:00:34]} 8. Bd3 {[%emt 0:00:17]} c5 {[%emt 0:00:36]} 9. c3 {[%emt 0:00:16]} cxd4 {[%emt 0:02:43]} 10. exd4 {[%emt 0:00:43]} b6 {[%emt 0:03:00]} 11. O-O {[%emt 0:00:16]} g6 {[%emt 0:05:50]} 12. Qf3 {[%emt 0:00:49]} Nh5 {[%emt 0:02:31]} 13. Rfe1 {[%emt 0:01:49]} Bd6 {[%emt 0:06:34]} 14. Re3 {[%emt 0:02:29]} Bb7 {[%emt 0:02:02]} 15. Rae1 {[%emt 0:03:39]} Bxe5 {[%emt 0:04:49]} 16. Rxe5 {[%emt 0:00:35]} Qf6 {[%emt 0:00:40]} 17. Rxh5 {[%emt 0:05:56]} Qxf3 {[%emt 0:00:19]} 18. Nxf3 {[%emt 0:00:27]} gxh5 {[%emt 0:00:27]} 19. Re5 {[%emt 0:00:31]} Kg7 {[%emt 0:04:40]} 20. Rxh5 {[%emt 0:00:12]} h6 {[%emt 0:00:17]} 21. Re5 {[%emt 0:00:12]} Rae8 {[%emt 0:01:32]} 22. Re3 {[%emt 0:02:00]} a6 {[%emt 0:02:02]} 23. Ne5 {[%emt 0:00:12]} b5 {[%emt 0:01:09]} 24. f4 {[%emt 0:01:06]} Rg8 {[%emt 0:02:06]} 25. Rg3+ {[%emt 0:01:41]} Kf6 {[%emt 0:01:01]} 26. Rh3 {[%emt 0:04:12]} Rh8 {[%emt 0:01:52]} 27. g4 {[%emt 0:01:02]} Reg8 {[%emt 0:02:00]} 28. Kf2 {[%emt 0:00:52]} Ke7 {[%emt 0:01:09]} 29. Rg3 {[%emt 0:01:43]} f5 {[%emt 0:04:45]} 30. h3 {[%emt 0:02:57]} Bc8 {[%emt 0:03:04]} 31. Be2 {[%emt 0:02:04]} Rh7 {[%emt 0:00:58]} 32. a3 {[%emt 0:04:03]} fxg4 {[%emt 0:00:57]} 33. hxg4 {[%emt 1:03:27]} Kd6 {[%emt 0:43:38]} 34. Rh3 {[%emt 0:00:00]} Rf8 {[%emt 0:00:00]} 35. Ke3 {[%emt 0:00:00]} Rf6 {[%emt 0:00:00]} 36. g5 {[%emt 0:00:00]} Rf8 {[%emt 0:00:00]} 37. g6 {[%emt 0:00:00]} Rg7 {[%emt 0:00:00]} 38. Rxh6 {[%emt 0:00:00]} Bd7 {[%emt 0:00:00]} 39. Bd3 {[%emt 0:00:00]} Be8 {[%emt 0:00:00]} 40. b4 {[%emt 0:00:00]} Rfg8 {[%emt 0:00:00]} 41. f5 {[%emt 0:00:00]} exf5 {[%emt 0:00:00]} 42. Bxf5 {[%emt 0:00:00]} Rf8 {[%emt 0:00:00]} 43. Kf4 {[%emt 0:01:46]} Rfg8 {[%emt 0:08:37]} 1/2-1/2

[Event "Seniors-LEM-50 Sachsen-Anhalt 2024"]
[Site "Magdeburg"]
[Date "2024.07.06"]
[Round "6.10"]
[White "Wirp, Hans-Werner"]
[Black "Ehrich, Dieter"]
[Result "0-1"]
[ECO "B21"]
[WhiteElo "1841"]
[BlackElo "1719"]
[Annotator "NA RC"]
[PlyCount "44"]
[EventDate "2024.06.25"]
[EventType "swiss"]
[EventCountry "GER"]
[SourceTitle "playchess.com"]
[Source "ChessBase"]
[SourceQuality "1"]
[TimeControl "40/5400+30:1800+30"]

1. d4 {[%emt 1:31:00]} c5 {[%emt 1:31:00]} 2. e4 {[%emt 0:00:30]} cxd4 {[%emt 0:00:30]} 3. c3 {[%emt 0:00:30]} d5 {[%emt 0:00:30]} 4. e5 {[%emt 0:00:30]} dxc3 {[%emt 0:00:30]} 5. Nxc3 {[%emt 0:00:30]} e6 {[%emt 0:00:30]} 6. Nf3 {[%emt 0:00:30]} Nc6 {[%emt 0:00:30]} 7. Bb5 {[%emt 0:00:30]} Bd7 {[%emt 0:00:30]} 8. O-O {[%emt 0:00:30]} Nge7 {[%emt 0:00:30]} 9. Bg5 {[%emt 0:00:30]} h6 {[%emt 0:00:30]} 10. Be3 {[%emt 0:00:30]} Ng6 {[%emt 0:00:30]} 11. Bd4 {[%emt 0:00:30]} Be7 {[%emt 0:00:30]} 12. Qe2 {[%emt 0:00:30]} Nxd4 {[%emt 0:00:30]} 13. Bxd7+ {[%emt 0:00:30]} Qxd7 {[%emt 0:00:30]} 14. Nxd4 {[%emt 0:00:30]} a6 {[%emt 0:00:30]} 15. Kh1 {[%emt 0:00:30]} Rc8 {[%emt 0:00:30]} 16. f4 {[%emt 0:00:30]} O-O {[%emt 0:00:30]} 17. Qg4 {[%emt 0:00:30]} Nh4 {[%emt 0:00:30]} 18. g3 {[%emt 0:00:30]} Nf5 {[%emt 0:00:30]} 19. Nxf5 {[%emt 0:00:30]} exf5 {[%emt 0:00:30]} 20. Qd1 {[%emt 0:00:30]} d4 {[%emt 0:00:30]} 21. Kg1 {[%emt 0:00:30]} Bc5 {[%emt 0:00:30]} 22. Qd3 {[%emt 0:00:30]} dxc3+ {[%emt 0:00:30]} 0-1

[Event "Seniors-LEM-50 Sachsen-Anhalt 2024"]
[Site "Magdeburg"]
[Date "2024.07.06"]
[Round "6.11"]
[White "Schroeder, Frank"]
[Black "Schiller, Dirk"]
[Result "1/2-1/2"]
[ECO "D04"]
[WhiteElo "1942"]
[BlackElo "1885"]
[Annotator "NA RC"]
[PlyCount "118"]
[EventDate "2024.06.25"]
[EventType "swiss"]
[EventCountry "GER"]
[SourceTitle "playchess.com"]
[Source "ChessBase"]
[SourceQuality "1"]
[TimeControl "40/5400+30:1800+30"]

1. d4 {[%emt 0:00:04]} d5 {[%emt 0:00:18]} 2. Nf3 {[%emt 0:00:06]} Nf6 {[%emt 0:00:16]} 3. e3 {[%emt 0:00:11]} c6 {[%emt 0:00:53]} 4. Bd3 {[%emt 0:00:20]} Nbd7 {[%emt 0:01:13]} 5. b3 {[%emt 0:00:15]} e6 {[%emt 0:01:15]} 6. a3 {[%emt 0:00:53] D04: Colle System.} Be7 {[%emt 0:01:39]} 7. Bb2 {[%emt 0:00:07]} O-O {[%emt 0:01:24]} 8. O-O {[%emt 0:00:09]} Ne4 {[%emt 0:00:18]} 9. Nbd2 {[%emt 0:00:33]} f5 {[%emt 0:00:08]} 10. c4 {[%emt 0:02:17]} Ndf6 {[%emt 0:02:52]} 11. Ne5 {[%emt 0:02:41]} Qe8 {[%emt 0:03:03]} 12. f3 {[%emt 0:02:10]} Ng5 {[%emt 0:02:52]} 13. Qe1 {[%emt 0:04:24]} Nf7 {[%emt 0:02:13]} 14. f4 {[%emt 0:04:42]} Nxe5 {[%emt 0:01:18]} 15. dxe5 {[%emt 0:00:29]} Ng4 {[%emt 0:00:55]} 16. h3 {[%emt 0:03:17]} Nh6 {[%emt 0:00:45]} 17. cxd5 {[%emt 0:01:44]} exd5 {[%emt 0:01:03]} 18. b4 {[%emt 0:01:52]} Be6 {[%emt 0:04:25]} 19. Rc1 {[%emt 0:02:25]} a5 {[%emt 0:01:38]} 20. Nb3 {[%emt 0:03:09]} axb4 {[%emt 0:02:02]} 21. axb4 {[%emt 0:00:02]} Ra2 {[%emt 0:03:44]} 22. Rc2 {[%emt 0:04:07]} Qd7 {[%emt 0:02:34]} 23. Nc5 {[%emt 0:17:44]} Bxc5 {[%emt 0:00:47]} 24. bxc5 {[%emt 0:00:31]} Rfa8 {[%emt 0:01:43]} 25. Bd4 {[%emt 0:04:22]} g6 {[%emt 0:06:37]} 26. Rxa2 {[%emt 0:00:55]} Rxa2 {[%emt 0:00:18]} 27. Qh4 {[%emt 0:02:54]} Nf7 {[%emt 0:01:02]} 28. Qf6 {[%emt 0:05:00]} Kf8 {[%emt 0:02:26]} 29. Qh4 {[%emt 0:03:46]} Nd8 {[%emt 0:01:41]} 30. g4 {[%emt 0:10:39]} Qe7 {[%emt 0:01:27]} 31. Qh6+ {[%emt 0:02:30]} Kg8 $11 {[%emt 0:01:27]} 32. g5 {[%emt 0:04:48]} Bc8 {[%emt 0:05:07]} 33. Qh4 {[%emt 0:01:19]} Ne6 {[%emt 0:00:34]} 34. Qe1 {[%emt 0:02:21]} Nxg5 {[%emt 0:01:28]} 35. Qg3 {[%emt 0:02:58]} Ne4 {[%emt 0:04:24]} 36. Bxe4 {[%emt 0:01:04]} dxe4 {[%emt 0:00:16]} 37. h4 {[%emt 0:01:26]} Be6 {[%emt 0:00:52]} 38. Kh1 {[%emt 0:04:07]} Bc4 {[%emt 0:00:37]} 39. Rf2 {[%emt 0:03:07]} Rxf2 {[%emt 0:06:49]} 40. Qxf2 {[%emt 0:00:08]} Kf7 {[%emt 0:00:14]} 41. Qg3 {[%emt 0:31:22]} Be2 {[%emt 0:31:20]} 42. Qg5 {[%emt 0:01:20]} Bc4 {[%emt 0:01:49]} 43. Qh6 {[%emt 0:02:35]} Kg8 {[%emt 0:00:46]} 44. Qg5 {[%emt 0:00:57]} Qxg5 {[%emt 0:00:36]} 45. hxg5 {[%emt 0:00:15]} h5 {[%emt 0:00:08]} 46. gxh6 {[%emt 0:00:00]} Kh7 {[%emt 0:00:00]} 47. Kh2 {[%emt 0:00:00]} Kxh6 {[%emt 0:00:00]} 48. Kh3 {[%emt 0:00:00]} g5 {[%emt 0:00:00]} 49. fxg5+ {[%emt 0:00:00]} Kxg5 {[%emt 0:00:00]} 50. Kg3 {[%emt 0:00:00]} Be6 {[%emt 0:00:00]} 51. Bc3 {[%emt 0:00:00]} Kg6 {[%emt 0:00:00]} 52. Kf4 {[%emt 0:00:00]} Kf7 {[%emt 0:00:00]} 53. Kg5 {[%emt 0:00:00]} Bc8 {[%emt 0:00:00]} 54. Bd4 {[%emt 0:00:00]} Ke6 {[%emt 0:00:00]} 55. Kf4 {[%emt 0:00:00]} Kd5 {[%emt 0:00:00]} 56. Kg5 {[%emt 0:00:00]} Be6 {[%emt 0:00:00]} 57. Kf4 {[%emt 0:00:00]} Bc8 {[%emt 0:00:00]} 58. Kg5 {[%emt 0:00:00]} Kc4 {[%emt 0:00:00]} 59. Kf4 {[%emt 0:00:00]} Kd5 {[%emt 0:00:00]} 1/2-1/2

[Event "Seniors-LEM-50 Sachsen-Anhalt 2024"]
[Site "Magdeburg"]
[Date "2024.07.06"]
[Round "6.12"]
[White "Leib, Britta"]
[Black "Schomann, Michael"]
[Result "1-0"]
[ECO "B24"]
[WhiteElo "1920"]
[BlackElo "1777"]
[Annotator "NA RC"]
[PlyCount "57"]
[EventDate "2024.06.25"]
[EventType "swiss"]
[EventCountry "GER"]
[SourceTitle "playchess.com"]
[Source "ChessBase"]
[SourceQuality "1"]
[TimeControl "40/5400+30:1800+30"]

1. e4 {[%emt 0:00:04]} c5 {[%emt 0:00:07]} 2. Nc3 {[%emt 0:00:08]} d6 {[%emt 0:00:19]} 3. g3 {[%emt 0:00:27]} Nf6 {[%emt 0:00:46]} 4. Bg2 {[%emt 0:00:49]} Nc6 {[%emt 0:00:26]} 5. h3 {[%emt 0:01:56]} e6 {[%emt 0:00:56]} 6. d3 {[%emt 0:01:55]} Be7 {[%emt 0:00:25]} 7. Nge2 {[%emt 0:02:33]} Qd7 {[%emt 0:04:14]} 8. O-O {[%emt 0:02:02]} b6 {[%emt 0:04:50]} 9. d4 {[%emt 0:17:58]} Bb7 $11 {[%emt 0:01:20]} 10. a3 {[%emt 0:00:57]} cxd4 {[%emt 0:08:53]} 11. Nxd4 {[%emt 0:01:08]} Rd8 {[%emt 0:07:31]} 12. Re1 {[%emt 0:05:00]} O-O {[%emt 0:03:52]} 13. Kh2 {[%emt 0:09:29]} Nxd4 {[%emt 0:03:39]} 14. Qxd4 {[%emt 0:03:40]} Qc6 {[%emt 0:02:11]} 15. Bg5 {[%emt 0:10:27]} Rfe8 {[%emt 0:01:59]} 16. Bh1 {[%emt 0:05:14]} Ng4+ {[%emt 0:03:52]} 17. hxg4 {[%emt 0:05:10]} Bxg5 {[%emt 0:00:23]} 18. Rad1 {[%emt 0:04:23]} e5 {[%emt 0:02:05]} 19. Qd3 {[%emt 0:02:10]} Qc5 {[%emt 0:04:10]} 20. Kg1 {[%emt 0:04:49]} Re6 {[%emt 0:02:45]} 21. Bg2 {[%emt 0:04:38]} Rf6 {[%emt 0:03:33]} 22. Rf1 {[%emt 0:05:37]} Qc8 {[%emt 0:03:11]} 23. Nd5 {[%emt 0:07:15]} Bxd5 {[%emt 0:00:36]} 24. Qxd5 {[%emt 0:00:49]} Qxg4 {[%emt 0:06:55]} 25. Qb7 {[%emt 0:01:31]} Rh6 {[%emt 0:03:26]} 26. Rd3 {[%emt 0:00:05]} Qh5 {[%emt 0:11:40]} 27. Rfd1 {[%emt 0:00:07]} Qe2 {[%emt 0:09:38]} 28. Qc7 {[%emt 0:01:16]} Rf6 {[%emt 0:03:24]} 29. Qxd8# {[%emt 0:00:30]} 1-0